bitfinex/quotes_ETHUSD_20250906
["timestamp","ask_amount","ask_price","bid_price","bid_amount"]
[1757187027750,5.753,4270.0,4269.8,0.3218]
[1757187028451,1.801,4270.0,4269.9,0.485]
[1757187028651,5.752,4270.0,4269.9,3.57957522]
[1757187028855,5.752,4270.0,4269.9,4.28387249]
[1757187029024,5.753,4270.0,4269.9,4.28387249]
[1757187029347,5.753,4270.0,4269.9,5.5842842]
[1757187030113,1.801,4270.0,4269.9,5.5842842]
[1757187030323,5.542,4270.0,4269.9,5.5842842]
[1757187030508,5.753,4270.0,4269.9,5.5842842]
[1757187030736,0.001,4270.8,4270.5,2.34164617]
[1757187030737,1.801,4270.6,4270.5,2.34164617]
[1757187030929,5.753,4270.6,4270.5,3.57924617]
[1757187031328,5.753,4270.6,4270.5,4.28341119]
[1757187034357,1.801,4270.6,4270.5,11.42415246]
[1757187034657,3.95,4270.6,4270.5,5.19178002]
[1757187047394,3.951,4270.6,4270.5,5.19178002]
[1757187047960,4.238,4270.6,4270.5,3.04581119]
[1757187048165,3.951,4270.6,4270.5,2.65144617]
[1757187048404,3.951,4270.6,4270.5,2.34164617]
[1757187048893,4.238,4270.6,4270.5,2.34164617]
[1757187053379,3.951,4270.6,4270.5,2.34164617]
[1757187053986,3.951,4270.6,4270.5,2.65144617]
[1757187055102,3.951,4270.6,4270.5,3.08354617]
[1757187055306,3.951,4270.6,4270.5,3.55664617]
[1757187056714,0.001,4270.6,4270.5,3.55664617]
[1757187056889,3.939,4270.6,4270.5,3.55664617]
[1757187057078,3.939,4270.6,4270.5,3.12454617]
[1757187057281,3.939,4270.6,4270.5,2.65144617]
[1757187057974,3.939,4270.6,4270.5,2.34164617]
[1757187058704,3.939,4270.6,4270.5,2.65144617]
[1757187058893,3.939,4270.6,4270.5,3.55664617]
[1757187059783,3.939,4270.6,4270.5,2.65144617]
[1757187061713,3.939,4270.6,4270.5,2.34164617]
[1757187061923,4.226,4270.6,4270.5,2.34164617]
[1757187066589,3.939,4270.6,4270.5,2.34164617]
[1757187066929,3.939,4270.6,4270.5,3.55664617]
[1757187068122,0.001,4270.6,4270.5,3.14796263]
[1757187068320,3.333,4270.6,4270.5,4.35147015]
[1757187069984,0.001,4270.6,4270.5,4.35147015]
[1757187072414,0.001,4270.6,4270.5,3.91937015]
[1757187073198,0.001,4270.6,4270.5,4.36127015]
[1757187074223,0.001,4270.6,4270.5,3.44627015]
[1757187074629,0.001,4270.6,4270.5,3.13647015]
[1757187079276,0.001,4270.6,4270.5,3.42357015]
[1757187079869,0.001,4270.6,4270.5,3.91377015]
[1757187080167,0.001,4270.6,4270.5,4.35567015]
[1757187081858,0.001,4270.6,4270.5,4.37908661]
[1757187082143,0.001,4270.6,4270.5,4.44954714]
[1757187083988,0.001,4270.6,4270.5,4.4729636]
[1757187084164,0.001,4270.6,4270.5,4.44954714]
[1757187090487,0.001,4270.6,4270.5,3.51744714]
[1757187095621,0.001,4270.6,4270.1,5.1898178]
[1757187095622,1.2285,4270.6,4270.1,2.34186553]
[1757187095822,7.9030178,4270.5,4270.0,0.004]
[1757187096022,5.1898178,4270.2,4270.0,0.004]
[1757187096208,0.3153,4270.1,4270.0,0.004]
[1757187096398,1.49259167,4270.1,4270.0,0.004]
[1757187096600,2.40479167,4270.1,4270.0,0.004]
[1757187098812,4.7466572,4270.1,4270.0,0.004]
[1757187102396,9.4656572,4270.1,4270.0,0.004]
[1757187102821,9.68323579,4270.1,4270.0,0.004]
[1757187103331,9.4656572,4270.1,4270.0,0.004]
[1757187106009,9.55959746,4270.1,4270.0,0.004]
[1757187106803,9.92696407,4270.1,4270.0,0.004]
[1757187107213,13.14419667,4270.1,4270.0,0.004]
[1757187108524,12.92696407,4270.1,4270.0,0.004]
[1757187111046,12.55959746,4270.1,4270.0,0.004]
[1757187112246,12.55959746,4270.1,4270.0,0.004]
[1757187112860,1.58653193,4270.1,4270.0,0.004]
[1757187113165,5.10129167,4270.1,4270.0,0.004]
[1757187113366,4.2372,4270.1,4270.0,0.004]
[1757187114315,6.57906553,4270.1,4270.0,0.004]
[1757187114723,6.94642647,4270.1,4270.0,0.004]
[1757187118772,6.63222647,4270.1,4270.0,0.004]
[1757187119055,12.13524427,4270.1,4270.0,0.004]
[1757187119421,13.62683521,4270.1,4270.0,0.004]
[1757187119622,11.28496968,4270.1,4270.0,0.004]
[1757187119862,13.62683521,4270.1,4270.0,0.004]
[1757187120647,14.06573521,4270.1,4270.0,0.004]
[1757187121017,14.06673521,4270.1,4270.0,0.004]
[1757187121245,14.53523521,4270.1,4270.0,0.004]
[1757187121453,14.06673521,4270.1,4270.0,0.004]
[1757187121659,13.62783521,4270.1,4270.0,0.004]
[1757187121953,1.85995188,4270.1,4270.0,0.3034]
[1757187122117,0.001,4270.1,4270.0,3.56762037]
[1757187122326,3.923,4270.1,4270.0,3.56762037]
[1757187123968,0.001,4270.1,4270.0,3.56762037]
[1757187124122,0.001,4270.1,4270.0,4.86574095]
[1757187124323,1.769,4270.1,4270.0,13.17235875]
[1757187124854,0.001,4270.1,4270.0,13.17235875]
[1757187126648,0.001,4270.1,4270.0,13.96435875]
[1757187127426,0.679,4270.8,4270.0,13.96435875]
[1757187127427,0.001,4271.1,4271.0,2.34137204]
[1757187127659,0.001,4271.1,4271.0,11.98702704]
[1757187127861,1e-08,4271.5,4271.4,10.53097058]
[1757187128459,1e-08,4271.5,4271.4,11.75267058]
[1757187128829,1e-08,4271.5,4271.4,6.56285278]
[1757187132977,1e-08,4271.5,4271.4,6.6567128]
[1757187133181,1e-08,4271.5,4271.4,7.55651032]
[1757187137468,1e-08,4271.5,4271.4,7.67331032]
[1757187140015,1.18600001,4271.5,4271.4,0.09386002]
[1757187140215,1.18600001,4271.5,4270.2,0.439]
[1757187140216,0.1168,4271.4,4270.6,2.34154417]
[1757187140403,0.2924,4270.7,4270.6,2.34154417]
[1757187140782,0.7236,4270.7,4270.5,2.34164268]
[1757187141011,0.1168,4270.6,4270.5,2.34164268]
[1757187141190,1.3028,4270.6,4270.5,2.34164268]
[1757187142012,0.8404,4270.6,4270.5,2.34564268]
[1757187142372,0.4092,4270.6,4270.5,2.34564268]
[1757187145292,0.1168,4270.6,4270.5,2.66074268]
[1757187148685,0.4092,4270.6,4270.5,2.34564268]
[1757187149790,0.1168,4270.6,4270.5,2.66074268]
[1757187150093,1.801,4270.8,4270.7,2.34153651]
[1757187150405,5.72,4270.8,4270.7,2.65663651]
[1757187151746,5.72,4270.8,4270.7,2.34153651]
[1757187152295,5.72,4270.8,4270.7,2.65663651]
[1757187153824,1.801,4270.8,4270.7,2.65663651]
[1757187154148,5.721,4270.8,4270.7,3.56263651]
[1757187154310,1.801,4270.8,4270.7,4.16514443]
[1757187154628,0.43120001,4271.5,4270.7,4.16514443]
[1757187154629,1e-08,4271.5,4271.4,2.34115278]
[1757187154790,1e-08,4271.5,4271.4,3.56225278]
[1757187154990,1e-08,4271.5,4271.4,3.67905278]
[1757187155629,1e-08,4271.5,4271.4,4.38303604]
[1757187155789,1e-08,4271.5,4271.4,5.0554604]
[1757187156626,1e-08,4271.5,4271.4,8.0554604]
[1757187160135,1e-08,4271.5,4271.4,11.9754604]
[1757187160631,1e-08,4271.5,4271.4,8.0554604]
[1757187181145,1e-08,4271.5,4271.4,15.07692494]
[1757187183579,0.4527,4272.6,4271.4,15.07692494]
[1757187183580,0.41610001,4272.4,4272.3,2.34065959]
[1757187184287,0.71100001,4272.4,4272.3,2.34065959]
[1757187184979,0.2949,4272.4,4272.3,2.34065959]
[1757187185990,0.733,4272.4,4272.3,2.34065959]
[1757187188269,0.2949,4272.4,4272.3,2.34065959]
[1757187188903,1.801,4272.7,4272.6,2.34049524]
[1757187189106,2.0959,4272.7,4272.6,2.34049524]
[1757187189310,0.001,4272.7,4272.6,2.34049524]
[1757187189597,0.2959,4272.7,4272.6,6.34266745]
[1757187191377,0.001,4272.7,4272.6,6.34266745]
[1757187191573,0.001,4272.7,4272.6,6.63506745]
[1757187192874,0.001,4272.7,4272.6,6.34266745]
[1757187193385,0.2925,4272.7,4272.6,6.34266745]
[1757187193587,0.001,4272.7,4272.6,6.45946745]
[1757187194745,0.001,4272.7,4272.6,6.75186745]
[1757187195078,0.001,4272.7,4272.6,6.45946745]
[1757187195397,0.2925,4272.7,4272.6,6.45946745]
[1757187200199,1.2225,4272.7,4272.4,2.34056778]
[1757187200396,0.93,4272.6,4272.3,0.1168]
[1757187200703,0.93,4272.6,4272.5,2.34055002]
[1757187200901,5.1385,4272.6,4272.5,2.34055002]
[1757187205827,0.2915,4272.6,4272.5,2.34055002]
[1757187206164,0.001,4272.7,4272.6,2.34049524]
[1757187206460,0.001,4272.7,4272.6,3.58449524]
[1757187207613,1e-08,4272.8,4272.7,3.13244047]
[1757187207816,1e-08,4272.8,4272.7,8.96676935]
[1757187208110,1e-08,4272.8,4272.7,8.01546935]
[1757187208334,1e-08,4272.8,4272.7,10.14355801]
[1757187208868,1e-08,4272.8,4272.7,10.59525801]
[1757187211239,1e-08,4272.8,4272.7,6.67825801]
[1757187211428,1e-08,4272.8,4272.7,7.47025801]
[1757187212959,1e-08,4273.6,4273.5,2.34000234]
[1757187213259,1e-08,4273.8,4273.7,2.33989283]
[1757187213560,1e-08,4273.8,4273.7,11.73402201]
[1757187213854,1e-08,4273.8,4273.7,12.68562201]
[1757187214030,1e-08,4273.8,4273.7,7.25279898]
[1757187214236,1e-08,4273.8,4273.7,8.82920012]
[1757187214425,1e-08,4273.8,4273.7,4.61980012]
[1757187215660,1e-08,4273.8,4273.7,4.91220012]
[1757187216547,1e-08,4273.8,4273.7,5.86380012]
[1757187217733,1e-08,4273.8,4273.7,5.52890012]
[1757187217937,1e-08,4273.8,4273.7,5.98060012]
[1757187218538,1e-08,4273.8,4273.7,10.68860012]
[1757187223557,1e-08,4273.8,4273.7,13.68860012]
[1757187225757,1e-08,4273.8,4273.7,12.73700012]
[1757187225961,0.74870001,4273.8,4273.7,11.65160012]
[1757187226471,0.74870001,4273.8,4273.7,7.73660012]
[1757187226887,0.30530001,4273.8,4273.7,7.73660012]
[1757187229446,1e-08,4273.8,4273.7,7.73660012]
[1757187229652,0.30530001,4273.8,4273.7,7.73660012]
[1757187231180,1e-08,4273.8,4273.7,8.04960012]
[1757187231374,1e-08,4273.8,4273.7,8.95360012]
[1757187231787,0.30530001,4273.8,4273.7,4.73660012]
[1757187231975,1.22100001,4273.8,4273.7,3.16019898]
[1757187232174,0.30530001,4273.8,4273.7,3.16019898]
[1757187232374,1e-08,4273.8,4273.7,3.16019898]
[1757187232703,1e-08,4273.8,4273.7,4.37719898]
[1757187232874,1e-08,4273.8,4273.7,5.95889203]
[1757187235769,1e-08,4273.8,4273.7,8.95889203]
[1757187237201,1e-08,4273.8,4273.7,14.14362121]
[1757187238986,0.30530001,4273.8,4273.7,12.92662121]
[1757187240794,1.22100001,4273.8,4273.7,11.65689203]
[1757187240994,0.30530001,4273.8,4273.7,7.74189203]
[1757187242999,1e-08,4273.8,4273.7,7.74189203]
[1757187243817,0.30530001,4273.8,4273.7,7.74189203]
[1757187246517,1e-08,4273.8,4273.7,7.74189203]
[1757187247703,1e-08,4273.8,4273.7,8.95889203]
[1757187251234,0.74980001,4273.8,4273.7,7.74189203]
[1757187251436,0.74980001,4273.8,4273.7,11.65689203]
[1757187252522,0.30160001,4273.8,4273.7,4.74189203]
[1757187252723,1.24980001,4273.8,4273.7,3.16019898]
[1757187253097,1.24980001,4273.8,4273.2,2.34015636]
[1757187253302,1.065,4273.7,4273.5,2.3399948]
[1757187253634,1.2498,4273.6,4273.5,2.34000234]
[1757187254742,1.2498,4273.6,4273.2,2.34011706]
[1757187254920,0.9482,4273.5,4273.2,2.34011706]
[1757187255135,0.1168,4273.5,4273.4,2.34000822]
[1757187255435,0.4184,4273.5,4273.4,2.34000822]
[1757187255617,1.3666,4273.5,4273.3,2.34010145]
[1757187255815,0.9482,4273.4,4273.3,2.34010145]
[1757187256004,1.2498,4273.4,4273.3,2.34010145]
[1757187258544,1.38646,4273.4,4272.8,2.45717589]
[1757187258744,0.9482,4273.3,4272.9,2.34033092]
[1757187258937,5.715,4273.2,4273.1,2.34019184]
[1757187259116,6.9648,4273.2,4273.1,2.34019184]
[1757187259832,6.4648,4273.2,4273.1,2.34019184]
[1757187264249,6.9648,4273.2,4273.1,2.34019184]
[1757187264449,6.9648,4273.2,4273.0,2.34026821]
[1757187264747,1.065,4273.1,4273.0,2.34026821]
[1757187265116,1.3666,4273.1,4273.0,2.34026821]
[1757187265343,0.8666,4273.1,4273.0,2.34026821]
[1757187265576,1.3666,4273.1,4273.0,2.34026821]
[1757187266152,0.4184,4273.1,4273.0,2.34026821]
[1757187266620,0.8666,4273.1,4273.0,2.34026821]
[1757187267028,0.4184,4273.1,4273.0,2.34026821]
[1757187267351,0.1168,4273.1,4273.0,2.34026821]
[1757187267545,0.4184,4273.1,4273.0,2.34026821]
[1757187271538,4.3334,4273.1,4273.0,2.34026821]
[1757187274262,4.0318,4273.1,4273.0,2.34026821]
[1757187274464,1.8,4273.2,4273.1,2.34022138]
[1757187274666,1.8,4273.2,4273.1,4.02218585]
[1757187274667,5.715,4273.2,4273.1,4.02218585]
[1757187275030,5.715,4273.2,4273.1,3.55372138]
[1757187280636,1.8,4273.2,4273.1,3.55372138]
[1757187280841,5.715,4273.2,4273.1,3.55372138]
[1757187281050,3.915,4273.2,4273.1,2.34022138]
[1757187281261,4.225,4273.2,4273.1,0.7037339]
[1757187281462,4.225,4273.2,4273.1,3.04395528]
[1757187282043,4.225,4273.2,4273.1,2.34022138]
[1757187282787,0.00100001,4273.8,4273.7,2.33989283]
[1757187282956,0.00100001,4273.8,4273.7,8.89645275]
[1757187283145,0.00100001,4273.8,4273.7,13.07725383]
[1757187283476,0.00100001,4273.8,4273.7,14.18198035]
[1757187283688,1e-08,4273.9,4273.8,2.33983808]
[1757187283864,1e-08,4273.9,4273.8,8.11282016]
[1757187284044,1e-08,4273.9,4273.8,8.40302016]
[1757187285750,1e-08,4273.9,4273.8,7.51622016]
[1757187286051,1e-08,4273.9,4273.8,18.85018116]
[1757187289495,0.77270001,4273.9,4273.8,2.33983808]
[1757187290687,1.26700001,4273.9,4273.1,0.48013492]
[1757187290895,1.26700001,4273.9,4273.1,2.34022138]
[1757187291193,1e-08,4273.9,4273.8,9.16319908]
[1757187291358,1e-08,4273.9,4273.8,13.04999908]
[1757187291555,1e-08,4273.9,4273.8,7.27022936]
[1757187291853,0.31000001,4273.9,4273.8,5.33983808]
[1757187292691,0.31000001,4273.9,4273.8,5.45663808]
[1757187294890,0.31000001,4273.9,4273.8,2.46063808]
[1757187295066,0.31100001,4273.9,4273.8,2.46063808]
[1757187295267,0.00100001,4273.9,4273.8,2.75083808]
[1757187295798,0.00100001,4273.9,4273.8,2.46063808]
[1757187296384,0.31100001,4273.9,4273.8,2.46063808]
[1757187297592,0.00100001,4273.9,4273.8,2.46063808]
[1757187298389,0.00100001,4273.9,4273.8,2.89436812]
[1757187300464,0.31100001,4273.9,4273.8,2.89436812]
[1757187300965,0.00100001,4273.9,4273.8,3.18456812]
[1757187301191,0.00100001,4273.9,4273.8,2.89436812]
[1757187301458,0.31100001,4273.9,4273.8,2.46063808]
[1757187301658,0.77370001,4273.9,4273.8,2.46063808]
[1757187301882,1.26800001,4273.9,4273.8,2.34383808]
[1757187302992,0.77370001,4273.9,4273.8,2.34383808]
[1757187303376,1.26800001,4273.9,4273.8,2.34383808]
[1757187304100,0.77370001,4273.9,4273.8,2.34383808]
[1757187304685,1.26800001,4273.9,4273.8,2.34383808]
[1757187304885,1.39480001,4273.9,4273.8,0.004]
[1757187305902,6.73458334,4273.9,4273.8,0.004]
[1757187306798,4.39480001,4273.9,4273.8,0.004]
[1757187308828,6.73458334,4273.9,4273.8,0.004]
[1757187311471,4.39480001,4273.9,4273.8,0.004]
[1757187312705,6.73458334,4273.9,4273.8,0.004]
[1757187313005,4.39480001,4273.9,4273.8,0.004]
[1757187315169,0.43780001,4273.9,4273.8,0.004]
[1757187315370,0.11780001,4273.9,4273.8,1.235]
[1757187315618,4.03180001,4273.9,4273.8,3.57483808]
[1757187315797,4.03180001,4273.9,4273.8,1.235]
[1757187316108,4.03180001,4273.9,4273.8,2.64583808]
[1757187316472,4.03180001,4273.9,4273.8,3.57483808]
[1757187320415,0.11780001,4273.9,4273.8,3.57483808]
[1757187320614,0.11780001,4273.9,4273.8,3.14453808]
[1757187320783,4.33130001,4273.9,4273.8,2.34383808]
[1757187321179,4.03180001,4273.9,4273.8,2.64583808]
[1757187321413,4.03180001,4273.9,4273.8,3.14453808]
[1757187321721,3.91500001,4273.9,4273.8,3.57483808]
[1757187324510,3.91500001,4273.9,4273.8,2.64583808]
[1757187324710,3.91500001,4273.9,4273.8,2.34383808]
[1757187326150,3.91500001,4273.9,4273.8,2.64583808]
[1757187327508,3.91500001,4273.9,4273.8,2.34383808]
[1757187328145,3.91500001,4273.9,4273.8,3.57483808]
[1757187330404,3.91500001,4273.9,4273.8,2.64583808]
[1757187331151,3.91500001,4273.9,4273.8,3.57483808]
[1757187334543,0.00100001,4273.9,4273.8,3.57483808]
[1757187334940,3.91400001,4273.9,4273.8,3.57483808]
[1757187335431,3.91400001,4273.9,4273.8,2.64583808]
[1757187335630,0.00100001,4273.9,4273.8,2.64583808]
[1757187336036,3.91400001,4273.9,4273.8,2.64583808]
[1757187336747,3.91400001,4273.9,4273.8,3.57483808]
[1757187344674,3.91400001,4273.9,4273.8,3.57903808]
[1757187345173,3.91400001,4273.9,4273.8,2.34383808]
[1757187345383,3.91400001,4273.9,4273.8,2.63873808]
[1757187345526,3.91400001,4273.9,4273.8,3.52473808]
[1757187346164,3.91400001,4273.9,4273.8,2.63873808]
[1757187347548,3.91400001,4273.9,4273.8,2.34383808]
[1757187348373,3.91400001,4273.9,4273.8,2.63873808]
[1757187350663,3.91400001,4273.9,4273.8,2.34383808]
[1757187356391,4.22490001,4273.9,4273.8,2.34383808]
[1757187356745,3.91400001,4273.9,4273.8,2.34383808]
[1757187358248,3.91400001,4273.9,4273.8,2.63873808]
[1757187358993,3.91400001,4273.9,4273.8,2.34383808]
[1757187360214,4.22490001,4273.9,4273.8,2.34383808]
[1757187361307,4.22490001,4273.9,4273.8,0.004]
[1757187361308,5.26520001,4273.9,4273.8,0.004]
[1757187361810,5.97172001,4273.9,4273.8,0.004]
[1757187363518,4.78510001,4273.9,4273.8,2.34383808]
[1757187366669,4.34170001,4273.9,4273.8,2.34383808]
[1757187368725,4.03080001,4273.9,4273.8,2.34383808]
[1757187370326,0.11780001,4273.9,4273.8,2.34383808]
[1757187370479,4.02980001,4273.9,4273.8,2.63733808]
[1757187370678,0.11780001,4273.9,4273.8,2.63733808]
[1757187370896,4.02980001,4273.9,4273.8,3.56653808]
[1757187374818,4.02980001,4273.9,4273.8,0.004]
[1757187374819,5.39788001,4273.9,4273.8,0.004]
[1757187374980,16.61099125,4273.9,4273.8,0.004]
[1757187375180,9.21897728,4273.9,4273.8,0.004]
[1757187375485,11.55876061,4273.9,4273.8,0.004]
[1757187377404,11.42800667,4273.9,4273.8,0.004]
[1757187377609,11.55862047,4273.9,4273.8,0.004]
[1757187378276,11.42800667,4273.9,4273.8,0.004]
[1757187378546,17.40299125,4273.9,4273.8,0.004]
[1757187378681,17.53357751,4273.9,4273.8,0.004]
[1757187380381,12.35059293,4273.9,4273.8,0.004]
[1757187384223,49.6308766,4273.9,4273.8,0.004]
[1757187384424,47.1357576,4273.9,4273.8,0.004]
[1757187384934,46.6831636,4273.9,4273.8,0.004]
[1757187385153,46.6831636,4273.9,4273.8,1e-08]
[1757187385154,50.85811151,4273.9,4273.8,1e-08]
[1757187385312,3.13227615,4273.0,4272.9,0.004]
[1757187385501,3.13233092,4272.9,4272.8,1e-08]
[1757187385697,31.52102651,4272.9,4272.8,1e-08]
[1757187385900,28.74131851,4272.9,4272.8,1e-08]
[1757187386239,30.28752551,4272.9,4272.8,1e-08]
[1757187386396,28.80963951,4272.9,4272.8,1e-08]
[1757187386596,37.04137248,4272.9,4272.8,1e-08]
[1757187387354,47.03626848,4272.9,4272.8,1e-08]
[1757187387840,47.40287237,4272.9,4272.8,1e-08]
[1757187388833,3.13260481,4272.4,4271.8,0.025]
[1757187389138,26.71342138,4272.4,4271.8,0.025]
[1757187389337,17.31732684,4272.4,4271.8,0.025]
[1757187389543,29.65547189,4272.4,4271.8,0.025]
[1757187389740,2.34082397,4272.0,4271.8,0.025]
[1757187390045,11.05282397,4272.0,4271.8,0.025]
[1757187390230,11.34032397,4272.0,4271.8,0.025]
[1757187390431,12.01720366,4272.0,4271.8,0.025]
[1757187390905,5.47687969,4272.0,4271.9,0.2975]
[1757187391101,4.8,4272.0,4271.9,1.2267]
[1757187391340,8.712,4272.0,4271.9,1.2267]
[1757187391530,5.712,4272.0,4271.9,1.2267]
[1757187391730,8.712,4272.0,4271.9,1.2267]
[1757187393512,8.713,4272.0,4271.9,1.2267]
[1757187394567,8.713,4272.0,4271.9,0.2975]
[1757187394714,9.5843,4272.0,4271.9,0.2975]
[1757187395654,9.5843,4272.0,4271.9,1.2267]
[1757187395825,8.713,4272.0,4271.9,1.2267]
[1757187400520,4.8,4272.0,4271.9,1.2267]
[1757187400764,5.713,4272.0,4271.9,3.56757876]
[1757187402373,1.8,4272.0,4271.9,3.56757876]
[1757187402739,5.713,4272.0,4271.9,4.27149759]
[1757187403050,3.913,4272.0,4271.9,4.27149759]
[1757187406376,3.913,4272.0,4271.9,3.56757876]
[1757187409852,0.1168,4272.3,4272.0,2.34082397]
[1757187410062,0.1168,4272.3,4272.2,2.34071438]
[1757187410395,4.0288,4272.3,4272.2,2.62751438]
[1757187410596,4.0288,4272.3,4272.2,3.56031438]
[1757187413920,3.0,4272.2,4271.9,0.004]
[1757187414084,3.4664,4272.2,4271.9,0.004]
[1757187414417,0.2997,4272.0,4271.9,0.004]
[1757187414650,4.2117,4272.0,4271.9,0.004]
[1757187414849,5.31821439,4272.0,4271.9,0.004]
[1757187414980,5.78151439,4272.0,4271.9,0.004]
[1757187417517,5.31821439,4272.0,4271.9,0.004]
[1757187436158,7.11921439,4272.0,4271.9,0.004]
[1757187436357,8.01661439,4272.0,4271.9,0.004]
[1757187436573,7.55861439,4272.0,4271.9,0.004]
[1757187436777,7.11921439,4272.0,4271.9,0.004]
[1757187438649,6.81951439,4272.0,4271.9,0.004]
[1757187438899,6.81951439,4272.0,4271.9,1.2182]
[1757187439094,7.13401439,4272.0,4271.9,0.004]
[1757187440393,7.3518624,4272.0,4271.9,0.004]
[1757187443887,7.0373624,4272.0,4271.9,0.004]
[1757187445102,7.0373624,4272.0,4271.9,0.3097]
[1757187445561,5.93084801,4272.0,4271.9,1.2182]
[1757187446580,5.93084801,4272.0,4271.9,0.3097]
[1757187446970,6.24534801,4272.0,4271.9,0.004]
[1757187447382,6.24571086,4272.0,4271.9,0.004]
[1757187448066,5.93121086,4272.0,4271.9,0.3097]
[1757187449992,5.93121086,4272.0,4271.9,0.7797]
[1757187450198,5.93121086,4272.0,4271.9,1.2182]
[1757187450905,5.93121086,4272.0,4271.9,0.7797]
[1757187451215,5.93121086,4272.0,4271.9,0.004]
[1757187451512,5.93121086,4272.0,4271.9,0.3097]
[1757187452307,5.93121086,4272.0,4271.9,0.004]
[1757187452484,7.87070621,4272.0,4271.9,0.004]
[1757187452683,7.43130621,4272.0,4271.9,0.004]
[1757187458944,7.11680621,4272.0,4271.9,0.004]
[1757187459626,7.11680621,4272.0,4271.9,0.3097]
[1757187460600,7.11680621,4272.0,4271.9,0.7997]
[1757187460799,7.11680621,4272.0,4271.9,1.2525]
[1757187461025,7.11680621,4272.0,4271.9,0.004]
[1757187461240,7.54432714,4272.0,4271.9,0.004]
[1757187461533,7.41340621,4272.0,4271.9,0.004]
[1757187462041,14.50193018,4272.0,4271.9,0.004]
[1757187462196,14.63284745,4272.0,4271.9,0.004]
[1757187465200,19.82207797,4272.0,4271.9,0.004]
[1757187465399,27.21928818,4272.0,4271.9,0.004]
[1757187468872,22.03005766,4272.0,4271.9,0.004]
[1757187469040,27.21928818,4272.0,4271.9,0.004]
[1757187471300,26.85207797,4272.0,4271.9,0.004]
[1757187472403,26.94597458,4272.0,4271.9,0.004]
[1757187474410,27.31320322,4272.0,4271.9,0.004]
[1757187474760,27.54322502,4272.0,4271.9,0.004]
[1757187476861,26.58752502,4272.0,4271.9,0.004]
[1757187477061,26.58714548,4272.0,4271.9,0.004]
[1757187477708,11.75459438,4272.0,4271.9,0.7864]
[1757187477856,17.21441835,4272.0,4271.9,1.2392]
[1757187478214,17.21441835,4272.0,4271.9,0.2964]
[1757187478215,20.21441835,4272.0,4271.9,0.2964]
[1757187478898,20.21441835,4272.0,4271.9,1.2392]
[1757187479526,6.29077039,4272.0,4271.9,1.2392]
[1757187479726,6.16023266,4272.0,4271.9,1.2392]
[1757187479981,9.16023266,4272.0,4271.9,1.2392]
[1757187480449,8.9420218,4272.0,4271.9,1.2392]
[1757187481252,9.1596507,4272.0,4271.9,1.2392]
[1757187483007,8.9420218,4272.0,4271.9,1.2392]
[1757187487515,8.9420218,4272.0,4271.9,3.58007876]
[1757187487701,8.9420218,4272.0,4271.9,1.2392]
[1757187488999,5.9420218,4272.0,4271.9,1.2392]
[1757187489223,5.9420218,4272.0,4271.9,3.58007876]
[1757187489425,11.13125232,4272.0,4271.9,1.2392]
[1757187490003,11.13125232,4272.0,4271.9,3.58007876]
[1757187490736,14.13125232,4272.0,4271.9,3.58007876]
[1757187491039,5.9420218,4272.0,4271.9,3.58007876]
[1757187491337,5.9420218,4272.0,4271.9,3.98063739]
[1757187491537,2.0310218,4272.0,4271.9,3.98063739]
[1757187491712,5.9410218,4272.0,4271.9,3.98063739]
[1757187491912,4.1400218,4272.0,4271.9,4.68455126]
[1757187492711,4.1400218,4272.0,4271.9,3.98063739]
[1757187493915,3.91,4272.3,4272.2,2.34071438]
[1757187494120,0.001,4272.3,4272.2,4.5149914]
[1757187494437,0.001,4272.3,4272.2,4.6317914]
[1757187494642,0.001,4272.3,4272.2,5.33562106]
[1757187508531,1.802,4273.2,4272.8,2.34038569]
[1757187508742,1.802,4273.2,4272.8,2.45718569]
[1757187508942,0.001,4273.2,4272.8,3.32775014]
[1757187509365,0.001,4273.2,4272.8,3.63385014]
[1757187509677,1.194,4272.9,4272.8,2.34038569]
[1757187510668,0.7358,4272.9,4272.8,2.34038569]
[1757187513549,4.6428,4272.9,4272.8,2.34038569]
[1757187515174,5.101,4272.9,4272.8,2.34038569]
[1757187516038,5.6112,4272.9,4272.4,0.70380984]
[1757187516238,0.8885,4272.8,4272.6,2.34048227]
[1757187516542,1.193,4272.7,4272.6,2.34048227]
[1757187516740,1.193,4272.7,4272.5,2.34054275]
[1757187516964,0.8885,4272.6,4272.4,2.34059169]
[1757187517174,1.04562,4272.7,4272.0,0.004]
[1757187517175,2.34060481,4272.4,4272.0,0.004]
[1757187517347,3.0,4272.2,4272.0,0.004]
[1757187517564,2.1045,4272.1,4272.0,0.004]
[1757187517754,7.21706048,4272.1,4272.0,0.004]
[1757187518399,6.78676048,4272.1,4272.0,0.004]
[1757187518561,5.1045,4272.1,4272.0,2.34482397]
[1757187519089,5.993,4272.1,4272.0,0.004]
[1757187521746,4.8,4272.1,4272.0,2.64842397]
[1757187521939,8.707,4272.1,4272.0,3.08482397]
[1757187522284,1.8,4272.1,4272.0,3.08482397]
[1757187522485,5.707,4272.1,4272.0,4.09289833]
[1757187522901,5.707,4272.1,4272.0,2.64842397]
[1757187523964,5.707,4272.1,4272.0,3.08482397]
[1757187524160,5.707,4272.1,4272.0,3.54702397]
[1757187524982,1.8,4272.1,4272.0,3.54702397]
[1757187525177,5.707,4272.1,4272.0,3.54702397]
[1757187525668,1.8,4272.1,4272.0,3.54702397]
[1757187525980,5.707,4272.1,4272.0,3.54702397]
[1757187526179,5.707,4272.1,4272.0,4.22118955]
[1757187527165,5.707,4272.1,4272.0,2.64842397]
[1757187534340,6.4647,4272.1,4272.0,2.34482397]
[1757187534546,6.9328,4272.1,4272.0,2.34482397]
[1757187535332,6.4647,4272.1,4272.0,2.34482397]
[1757187535539,6.0068,4272.1,4272.0,2.34482397]
[1757187536139,6.4647,4272.1,4272.0,2.34482397]
[1757187540344,6.0068,4272.1,4272.0,2.34482397]
[1757187541968,5.707,4272.1,4272.0,2.34482397]
[1757187542935,5.707,4272.1,4272.0,2.64842397]